Workbook

Sheet Direct Static Grouping
A1: Input values
A2: S | B2: 2 | J2: Groups: | K2: C(T) | M2: Try the various groups proposed!
A3: min ti* | B3: 3 | J3: {1,2,2,3) | K3: 10.60230083
A4: S S/Tj | B4: =SUM(C11:C20) -> 2.893788337 | J4: {1,2,3,1) | K4: 10.52307409
A5: S indiv. | B5: =SUM(O11:O29) -> 7.708497139 | J5: {1,2,3,3) | K5: 10.40015467
A6: C(T) | B6: =B4+B5 -> 10.60228548 | J6: {1,2,2,1} | K6: 9.940338435
A7: Best | B7: 10.60228548 | J7: {1,2,1,1} | K7: 9.768699997
A8: Result | B8: Not improved
A10: Group # | B10: Tj | C10: S/Tj | E10: # | F10: ai | G10: MTTFi | H10: CPi | I10: CUi | J10: ti* | K10: Fi* | L10: Grp# | M10: Tj | N10: lE(Tj) | O10: CPi/Tj + CUi lE(Tj)
A11: 1 | B11: 3.29968798 | C11: =S/B11 -> 0.6061179155 | E11: 1 | F11: 3 | G11: 4 | H11: 2 | I11: 5 | J11: 2.621341795 | K11: =H11/J11+LambdaE(J11,G11,F11)*I11 -> 1.145230735 | L11: 1 | M11: =T_1 -> 3.29968798 | N11: =LambdaE(M11,G11,F11) -> 0.1211407789 | O11: =H11/(M11)+I11*N11 -> 1.21182181
A12: 2 | B12: 1.237780154 | C12: =S/B12 -> 1.615795821 | E12: 2 | F12: 3 | G12: 3 | H12: 1 | I12: 50 | J12: 0.7237690936 | K12: =H12/J12+LambdaE(J12,G12,F12)*I12 -> 2.072422031 | L12: 2 | M12: =T_2 -> 1.237780154 | N12: =LambdaE(M12,G12,F12) -> 0.04040618438 | O12: =H12/(M12)+I12*N12 -> 2.828207129
A13: 3 | B13: 2.976745956 | C13: =S/B13 -> 0.6718746006 | E13: 3 | F13: 3 | G13: 3 | H13: 3 | I13: 10 | J13: 1.785008955 | K13: =H13/J13+LambdaE(J13,G13,F13)*I13 -> 2.520977894 | L13: 2 | M13: =T_2 -> 1.237780154 | N13: =LambdaE(M13,G13,F13) -> 0.04040618438 | O13: =H13/(M13)+I13*N13 -> 2.827755576
A14: 4 | E14: 4 | F14: 3 | G14: 5 | H14: 1 | I14: 10 | J14: 2.1 | K14: =H14/J14+LambdaE(J14,G14,F14)*I14 -> 0.7274098647 | L14: 3 | M14: =T_3 -> 2.976745956 | N14: =LambdaE(M14,G14,F14) -> 0.05047753237 | O14: =H14/(M14)+I14*N14 -> 0.840712624
A15: 5 | K15: =SUM(K11:K14) -> 6.466040524
A16: 6
A17: 7
A18: 8
A19: 9
A20: 10
